bitfinex-derivatives/quotes_SOLF0:USTF0_20241103
["timestamp","ask_amount","ask_price","bid_price","bid_amount"]
[1730632877344,18.25,164.53,164.37,3.9489]
[1730632877937,21.2482838,164.53,164.37,3.9489]
[1730632878141,1.0,164.52,164.37,3.9489]
[1730632880545,2.78,164.51,164.37,3.9489]
[1730632891365,1.3311,164.54,164.37,3.9489]
[1730632891754,2.78,164.53,164.37,3.9489]
[1730632900277,2.78,164.52,164.37,3.9489]
[1730632911691,1.3311,164.54,164.37,3.9489]
[1730632911893,2.78,164.53,164.37,3.9489]
[1730632914689,1.3311,164.54,164.37,3.9489]
[1730632914992,2.78,164.53,164.37,3.9489]
[1730632916678,2.78,164.53,164.37,6.7289]
[1730632921782,2.78,164.53,164.37,3.9489]
[1730632921987,18.25,164.52,164.37,3.9489]
[1730632922494,2.5759,164.51,164.37,3.9489]
[1730632924989,2.78,164.5,164.37,3.9489]
[1730632928292,1.3311,164.54,164.37,3.9489]
[1730632928493,2.78,164.51,164.37,3.9489]
[1730632937295,2.78,164.51,164.38,2.78]
[1730632937715,2.78,164.51,164.37,3.9489]
[1730632937893,2.78,164.51,164.36,35.98451244]
[1730632939602,18.25,164.5,164.36,35.98451244]
[1730632940211,2.6261,164.49,164.36,35.98451244]
[1730632940406,18.25,164.48,164.36,35.98451244]
[1730632940609,18.25,164.48,164.37,2.78]
[1730632941502,19.5099,164.48,164.37,2.78]
[1730632948012,19.5099,164.48,164.36,35.98451244]
[1730632949124,19.5099,164.48,164.36,0.73205331]
[1730632959725,1.2599,164.48,164.36,3.51205331]
[1730632959917,2.78,164.47,164.36,3.51205331]
[1730632967627,2.78,164.47,164.36,0.73205331]
[1730632981137,1.2599,164.48,164.37,2.78]
[1730632981449,4.0399,164.48,164.37,2.78]
[1730632981742,4.0399,164.48,164.38,2.6271]
[1730632982144,1.2599,164.48,164.39,2.99517982]
[1730632982338,1.2599,164.48,164.38,2.6271]
[1730632982954,2.6261,164.49,164.38,2.6271]
[1730632983538,2.6261,164.49,164.39,3.02419815]
[1730632984445,2.6261,164.49,164.38,2.6271]
[1730632990558,2.6261,164.49,164.36,0.73205331]
[1730632990861,2.6261,164.49,164.37,2.78]
[1730632991863,2.6261,164.49,164.36,0.73205331]
[1730632996161,2.6261,164.49,164.36,3.51205331]
[1730632997970,2.6261,164.49,164.36,0.73205331]
[1730632998272,2.6261,164.49,164.36,3.51205331]
[1730633000263,1.3121,164.49,164.36,3.51205331]
[1730633000468,2.78,164.5,164.36,3.51205331]
[1730633000674,2.78,164.5,164.37,1.1176046]
[1730633000966,1.2889,164.52,164.37,1.1176046]
[1730633001167,4.0689,164.52,164.37,1.1176046]
[1730633004573,4.0689,164.52,164.38,1.11758278]
[1730633004873,4.0689,164.52,164.36,9.60005331]
[1730633005059,4.0689,164.52,164.37,1.11758278]
[1730633006268,4.0689,164.52,164.36,3.51205331]
[1730633006464,4.0689,164.52,164.37,1.11764641]
[1730633008369,4.0689,164.52,164.36,3.51205331]
[1730633008570,4.0689,164.52,164.37,1.11763741]
[1730633012480,4.0689,164.52,164.38,1.11759493]
[1730633012775,4.0689,164.52,164.36,3.51205331]
[1730633012974,4.0689,164.52,164.37,1.11758332]
[1730633015286,1.2889,164.52,164.37,1.11758332]
[1730633016579,1.2889,164.52,164.38,1.11753841]
[1730633016782,1.2889,164.52,164.39,1.11753841]
[1730633017087,1.2889,164.52,164.4,4.0755]
[1730633017385,1.2889,164.52,164.4,6.5974]
[1730633017881,1.2889,164.52,164.4,9.6431798]
[1730633018585,1.2889,164.52,164.4,6.8631798]
[1730633018885,1.2889,164.52,164.41,2.78]
[1730633025791,2.5399,164.53,164.41,2.78]
[1730633026179,2.78,164.56,164.41,2.78]
[1730633027294,5.4521,164.57,164.41,2.78]
[1730633029287,5.4521,164.57,164.4,6.8631798]
[1730633029490,5.4521,164.57,164.41,2.78]
[1730633030490,2.6721,164.57,164.41,2.78]
[1730633030680,5.4321,164.57,164.41,2.78]
[1730633033096,5.4321,164.57,164.42,1.11736193]
[1730633037601,5.4321,164.57,164.41,2.78]
[1730633037906,5.4321,164.57,164.42,1.11725942]
[1730633040607,5.4321,164.57,164.41,2.78]
[1730633040800,5.4321,164.57,164.42,1.11725946]
[1730633041003,5.4321,164.57,164.43,2.76]
[1730633053619,2.6721,164.57,164.43,2.76]
[1730633053815,2.6721,164.57,164.44,1.11725531]
[1730633054920,2.76,164.63,164.44,1.11725531]
[1730633055121,1.2851,164.62,164.43,2.76]
[1730633064527,1.2851,164.62,164.4,6.8631798]
[1730633064731,1.2851,164.62,164.41,2.76]
[1730633065229,1.2851,164.62,164.42,1.11726574]
[1730633065628,1.2851,164.62,164.43,2.76]
[1730633068228,1.2851,164.62,164.4,6.8631798]
[1730633068531,1.2851,164.62,164.41,3.87731918]
[1730633068832,1.2851,164.62,164.42,1.11731918]
[1730633071329,1.2851,164.62,164.41,2.76]
[1730633071532,1.2851,164.62,164.42,1.11728762]
[1730633075320,1.2851,164.62,164.41,2.76]
[1730633075523,1.2851,164.62,164.42,1.11733813]
[1730633075929,1.2851,164.62,164.41,2.76]
[1730633076125,1.2851,164.62,164.42,1.11732653]
[1730633079332,1.2851,164.62,164.41,2.76]
[1730633079532,1.2851,164.62,164.42,1.11732653]
[1730633083436,1.2851,164.62,164.41,2.76]
[1730633083631,1.2851,164.62,164.42,1.11732653]
[1730633086835,19.5151,164.62,164.41,2.76]
[1730633089445,18.23,164.6,164.36,0.73205331]
[1730633089646,18.23,164.58,164.36,0.73205331]
[1730633089848,18.23,164.56,164.36,0.73205331]
[1730633090150,2.6247,164.59,164.37,1.3495]
[1730633090151,18.23,164.54,164.37,1.3495]
[1730633090448,1.25,164.55,164.37,1.3495]
[1730633090449,23.6147,164.53,164.37,1.3495]
[1730633090648,20.8547,164.53,164.37,1.3495]
[1730633090954,2.76,164.52,164.37,1.3495]
[1730633091538,2.76,164.51,164.37,1.3495]
[1730633092345,2.6247,164.53,164.37,1.3495]
[1730633092546,2.76,164.52,164.37,1.3495]
[1730633092756,2.76,164.52,164.37,4.1095]
[1730633094647,2.76,164.52,164.36,0.73205331]
[1730633095259,2.76,164.52,164.37,1.3235]
[1730633095758,2.6247,164.53,164.37,1.3235]
[1730633095959,2.76,164.52,164.37,1.3235]
[1730633100559,2.76,164.52,164.36,0.73205331]
[1730633102362,2.76,164.51,164.36,0.73205331]
[1730633102543,18.23,164.5,164.36,0.73205331]
[1730633103557,18.23,164.5,164.37,1.3634]
[1730633103750,59.55327401,164.51,164.36,0.73205331]
[1730633103956,2.76,164.5,164.37,2.49434281]
[1730633104158,2.76,164.5,164.37,1.3767]
[1730633104365,2.76,164.49,164.37,1.3767]
[1730633105662,2.76,164.48,164.37,1.3767]
[1730633106062,2.76,164.48,164.36,0.73205331]
[1730633106261,59.55327401,164.51,164.36,0.73205331]
[1730633106450,2.76,164.5,164.36,0.73205331]
[1730633108470,2.76,164.49,164.36,0.73205331]
[1730633108964,77.78327401,164.51,164.36,0.73205331]
[1730633109163,2.76,164.5,164.36,0.73205331]
[1730633110765,1.3356,164.49,164.36,0.73205331]
[1730633111151,2.76,164.48,164.33,2.04348992]
[1730633111370,2.76,164.47,164.33,2.04348992]
[1730633112362,1.0,164.46,164.33,2.04348992]
[1730633113667,2.76,164.45,164.33,2.04348992]
[1730633113861,1.0,164.46,164.33,2.04348992]
[1730633114062,2.76,164.45,164.33,2.04348992]
[1730633116368,2.6152,164.44,164.33,2.04348992]
[1730633116767,1.2948,164.43,164.33,2.04348992]
[1730633117367,1.2948,164.43,164.32,1.95338232]
[1730633117869,2.2948,164.43,164.32,1.95338232]
[1730633118474,2.2948,164.43,164.31,2.00579461]
[1730633121769,2.96,164.42,164.31,2.00579461]
[1730633122465,1.0,164.41,164.31,2.00579461]
[1730633126684,2.96,164.4,164.31,2.00579461]
[1730633130267,1.0,164.41,164.31,2.00579461]
[1730633130783,2.96,164.4,164.31,2.00579461]
[1730633132586,2.96,164.39,164.31,2.00579461]
[1730633132986,1.3704,164.38,164.31,2.00579461]
[1730633135286,2.96,164.37,164.31,2.00579461]
[1730633144383,19.5428,164.36,164.31,2.00579461]
[1730633144581,19.5428,164.36,164.3,2.1176239]
[1730633148289,1.0,164.35,164.3,2.1176239]
[1730633148490,18.23,164.34,164.3,2.1176239]
[1730633148690,2.96,164.33,164.3,2.1176239]
[1730633149090,1.3128,164.32,164.3,2.1176239]
[1730633152303,1.3128,164.32,164.3,1.5498239]
[1730633154095,2.88,164.31,164.3,1.5498239]
[1730633160105,1.3128,164.32,164.3,1.5498239]
[1730633160308,2.88,164.31,164.3,1.5498239]
[1730633165900,1.3128,164.32,164.3,1.5498239]
[1730633166097,2.88,164.31,164.3,1.5498239]
[1730633177907,18.23,164.34,164.3,1.5498239]
[1730633178115,2.88,164.33,164.3,1.5498239]
[1730633181523,2.8,164.32,164.3,1.5498239]
[1730633181832,18.23,164.34,164.3,1.5498239]
[1730633182014,2.8,164.33,164.3,1.5498239]
[1730633182622,2.8,164.32,164.3,1.5498239]
[1730633189521,1.0,164.31,164.3,1.5498239]
[1730633193730,3.8,164.31,164.3,1.5498239]
[1730633193952,22.03,164.31,164.3,1.5498239]
[1730633197345,22.03,164.31,164.27,2.75630784]
[1730633201541,1.0,164.31,164.27,2.75630784]
[1730633201745,2.8,164.3,164.27,2.75630784]
[1730633202458,18.23,164.29,164.27,2.75630784]
[1730633205853,3.03507881,164.3,164.27,2.75630784]
[1730633206157,2.8,164.29,164.27,2.75630784]
[1730633207855,3.03507881,164.3,164.27,2.75630784]
[1730633208057,2.8,164.29,164.27,2.75630784]
[1730633211459,21.26507881,164.3,164.27,2.75630784]
[1730633211652,2.78,164.29,164.27,2.75630784]
[1730633216471,18.23,164.3,164.27,2.75630784]
[1730633216651,2.78,164.29,164.27,2.75630784]
[1730633218467,22.05768427,164.28,164.27,2.75630784]
[1730633218854,24.83768427,164.28,164.27,2.75630784]
[1730633220166,22.05768427,164.28,164.27,2.75630784]
[1730633220462,24.83768427,164.28,164.27,2.75630784]
[1730633220658,24.83860481,164.28,164.27,2.75630784]
[1730633223065,21.01,164.28,164.27,2.75630784]
[1730633223263,24.83962465,164.28,164.27,2.75630784]
[1730633224267,22.05962465,164.28,164.27,2.75630784]
[1730633224463,24.83962465,164.28,164.27,2.75630784]
[1730633227275,24.83962465,164.28,164.27,0.43863391]
[1730633227465,35.27647738,164.28,164.27,0.43863391]
[1730633227665,42.84820374,164.28,164.27,0.43863391]
[1730633242883,31.44685273,164.28,164.27,0.43863391]
[1730633244087,42.83468417,164.28,164.27,0.43863391]
[1730633246487,43.85651058,164.28,164.27,0.43863391]
[1730633248683,43.85652269,164.28,164.27,0.43863391]
[1730633249076,43.85652269,164.28,164.22,4.42171494]
[1730633249278,18.23,164.26,164.22,3.64092123]
[1730633249584,23.84655971,164.27,164.22,3.64092123]
[1730633249585,18.23,164.24,164.22,3.64092123]
[1730633249782,2.78,164.23,164.22,3.64092123]
[1730633249988,84.64849682,164.23,164.22,3.64092123]
[1730633252277,80.66983868,164.23,164.22,3.64092123]
[1730633252481,84.64897984,164.23,164.22,3.64092123]
[1730633255397,84.64897984,164.23,164.22,0.45721168]
[1730633255991,80.66983868,164.23,164.22,0.45721168]
[1730633256582,84.61069601,164.23,164.22,0.45721168]
[1730633258291,62.21109601,164.23,164.22,0.45721168]
[1730633259892,58.27023868,164.23,164.22,0.45721168]
[1730633260198,62.21045495,164.23,164.22,0.45721168]
[1730633263895,58.27023868,164.23,164.22,0.45721168]
[1730633264098,55.49023868,164.23,164.22,0.45721168]
[1730633264293,62.21128882,164.23,164.22,0.45721168]
[1730633266389,76.55023868,164.23,164.22,0.45721168]
[1730633266591,80.49222516,164.23,164.22,0.45721168]
[1730633268200,80.49222516,164.23,164.22,0.0614673]
[1730633271712,76.55023868,164.23,164.22,0.0614673]
[1730633271915,80.48728473,164.23,164.22,0.0614673]
[1730633272615,92.29872328,164.23,164.22,0.0614673]
[1730633275008,80.48728473,164.23,164.22,0.0614673]
[1730633275609,80.48625914,164.23,164.22,0.0614673]
[1730633278210,80.48625914,164.23,164.22,0.00833112]
[1730633278813,59.42625914,164.23,164.22,0.00833112]
[1730633279015,62.20625914,164.23,164.22,0.00833112]
[1730633279609,58.27023868,164.23,164.22,0.00833112]
[1730633279812,62.20461195,164.23,164.22,0.00833112]
[1730633280319,6.71437327,164.23,164.22,0.00833112]
[1730633288429,6.71437327,164.23,164.21,5.60572034]
[1730633288629,3.93437327,164.22,164.21,5.60572034]
[1730633289440,6.71437327,164.22,164.21,5.60572034]
[1730633289821,2.78,164.22,164.21,5.60572034]
[1730633290128,6.71548674,164.22,164.21,5.60572034]
[1730633290519,3.93548674,164.22,164.21,5.60572034]
[1730633290722,4.63078674,164.22,164.21,5.60572034]
[1730633291544,1.85078674,164.22,164.21,5.60572034]
[1730633291740,4.63078674,164.22,164.21,5.60572034]
[1730633295729,1.85078674,164.22,164.21,5.60572034]
[1730633295932,4.63078674,164.22,164.21,5.60572034]
[1730633296933,2.78,164.22,164.21,5.60572034]
[1730633302041,2.78,164.22,164.21,4.27132034]
[1730633302842,6.69142794,164.22,164.21,0.60457871]
[1730633303043,18.42553823,164.22,164.21,0.60457871]
[1730633303251,6.69142794,164.22,164.21,0.60457871]
[1730633303741,24.97142794,164.22,164.21,0.60457871]
[1730633303948,46.61140408,164.22,164.21,0.60457871]
[1730633304137,46.56358202,164.22,164.21,0.60457871]
[1730633304640,36.51576505,164.22,164.21,0.60457871]
[1730633306143,46.56036378,164.22,164.21,0.60457871]
[1730633307644,46.55915581,164.22,164.21,0.60457871]
[1730633310946,42.6967579,164.22,164.21,0.60457871]
[1730633311147,46.55814535,164.22,164.21,0.60457871]
[1730633311354,42.6967579,164.22,164.21,0.60457871]
[1730633311652,46.55810401,164.22,164.21,0.60457871]
[1730633312951,46.55810401,164.22,164.19,1.21725574]
[1730633313253,43.77810401,164.21,164.19,1.21725574]
[1730633313454,3.86134611,164.2,164.19,1.21725574]
[1730633313649,18.28,164.21,164.19,1.21725574]
[1730633314146,21.06,164.22,164.19,1.21725574]
[1730633314341,39.6454364,164.21,164.19,1.21725574]
[1730633314540,18.28,164.21,164.19,1.21725574]
[1730633315449,21.06,164.22,164.19,1.21725574]
[1730633315652,39.64188874,164.21,164.19,1.21725574]
[1730633315853,18.28,164.21,164.19,1.21725574]
[1730633316755,21.06,164.22,164.19,1.21725574]
[1730633316959,18.28,164.2,164.19,1.21725574]
[1730633319357,21.06,164.22,164.19,1.21725574]
[1730633325656,18.28,164.21,164.19,1.21725574]
[1730633327062,2.78,164.22,164.19,1.21725574]
[1730633327461,21.06,164.22,164.19,1.21725574]
[1730633328466,2.78,164.22,164.19,1.21725574]
[1730633328949,21.06,164.22,164.19,1.21725574]
[1730633330156,2.78,164.22,164.19,1.21725574]
[1730633330555,21.06,164.22,164.19,1.21725574]
[1730633331552,2.78,164.22,164.19,1.21725574]
[1730633331952,21.06,164.22,164.19,1.21725574]
[1730633333063,2.78,164.22,164.19,1.21725574]
[1730633333461,21.06,164.22,164.19,1.21725574]
[1730633334571,18.28,164.21,164.19,1.21725574]
[1730633335670,2.78,164.22,164.19,1.21725574]
[1730633336270,21.06,164.22,164.19,1.21725574]
[1730633337172,2.78,164.22,164.19,1.21725574]
[1730633337562,21.06,164.22,164.19,1.21725574]
[1730633338470,2.78,164.22,164.19,1.21725574]
[1730633338872,21.06,164.22,164.19,1.21725574]
[1730633339771,2.78,164.22,164.19,1.21725574]
[1730633340160,21.06,164.22,164.19,1.21725574]
[1730633341275,1.0,164.21,164.19,1.21725574]
[1730633341473,19.28,164.21,164.19,1.21725574]
[1730633354269,2.78,164.2,164.19,1.21725574]
[1730633361682,21.06,164.2,164.19,1.21725574]
[1730633362585,2.78,164.2,164.19,1.21725574]
[1730633364390,31.10220944,164.2,164.19,1.21725574]
[1730633365282,46.93274573,164.2,164.19,0.15910585]
[1730633368377,46.91993503,164.2,164.19,0.15910585]
[1730633371983,42.97511166,164.2,164.19,0.15910585]
[1730633372190,46.9229116,164.2,164.19,0.15910585]
[1730633374486,46.9229116,164.2,164.19,0.0213983]
[1730633374988,46.9229116,164.2,164.19,0.0013983]
[1730633375280,46.9229116,164.2,164.09,3.9441]
[1730633375486,18.28,164.18,164.09,3.9441]
[1730633375683,10.04220944,164.17,164.09,3.9441]
[1730633375978,21.06,164.16,164.09,3.9441]
[1730633376182,22.22707702,164.15,164.09,3.9441]
[1730633376489,3.94707702,164.14,164.09,3.9441]
[1730633376676,3.94707702,164.13,164.09,3.9441]
[1730633376877,6.72707702,164.12,164.09,3.9441]
[1730633377185,3.94707702,164.11,164.09,3.9441]
[1730633377389,3.94707702,164.1,164.09,3.9441]
[1730633379386,2.78,164.12,164.09,3.9441]
[1730633379585,3.94572424,164.11,164.09,3.9441]
[1730633379795,3.94572424,164.1,164.09,3.9441]
[1730633384193,1.85912424,164.1,164.09,3.9441]
[1730633384379,2.78,164.11,164.09,3.9441]
[1730633396508,3.8950692,164.1,164.09,3.9441]
[1730633397496,2.78,164.11,164.09,3.9441]
[1730633397702,3.89511912,164.1,164.09,3.9441]
[1730633398011,2.78,164.11,164.09,3.9441]
[1730633398207,3.89508559,164.1,164.09,3.9441]
[1730633400003,2.76,164.14,164.09,3.9441]
[1730633400206,3.89510377,164.13,164.09,3.9441]
[1730633400419,3.89510377,164.12,164.09,3.9441]
[1730633400601,3.89510377,164.11,164.09,3.9441]
[1730633400797,2.76,164.14,164.09,3.9441]
[1730633401006,3.89650055,164.1,164.09,3.9441]
[1730633407016,3.89650055,164.1,164.01,2.76]
[1730633407215,3.89650055,164.09,163.98,3.8631]
[1730633407419,3.89650055,164.08,164.0,2.76]
[1730633407617,3.89669249,164.07,164.0,38.09422218]
[1730633407923,3.89669249,164.06,164.0,38.09422218]
[1730633408115,2.76,164.11,164.0,38.09422218]
[1730633408327,3.89671186,164.1,164.0,38.09422218]
[1730633408619,2.76,164.11,164.0,38.09422218]
[1730633408620,3.89671186,164.09,164.0,38.09422218]
[1730633408913,3.89671186,164.08,164.0,35.33422218]
[1730633409110,3.89671186,164.07,164.0,35.33422218]
[1730633409307,3.89671186,164.06,164.0,35.33422218]
[1730633409519,3.89671186,164.05,164.0,35.33422218]
[1730633409716,2.76,164.11,164.0,35.33422218]
[1730633409919,3.89663049,164.1,164.0,35.33422218]
[1730633410121,3.89663049,164.09,164.0,35.33422218]
[1730633410317,3.89663049,164.08,164.0,35.33422218]
[1730633410620,2.76,164.07,164.0,35.33422218]
[1730633410810,6.65527246,164.06,164.0,35.33422218]
[1730633411013,3.89527246,164.05,164.0,35.33422218]
[1730633411316,3.89527246,164.04,164.0,35.33422218]
[1730633411516,3.89527246,164.03,164.0,35.33422218]
[1730633411723,2.76,164.06,164.0,35.33422218]
[1730633412024,3.89393581,164.05,164.0,35.33422218]
[1730633412217,3.89393581,164.04,164.0,35.33422218]
[1730633412417,3.89393581,164.03,164.0,35.33422218]
[1730633412619,2.76,164.06,164.0,35.33422218]
[1730633412922,3.89288235,164.05,164.0,35.33422218]
[1730633413125,3.89288235,164.04,164.0,35.33422218]
[1730633413421,3.89288235,164.03,164.0,35.33422218]
[1730633413627,2.76,164.06,164.0,35.33422218]
[1730633413824,3.89196748,164.05,164.0,35.33422218]
[1730633414120,2.76,164.06,164.0,35.33422218]
[1730633414323,3.89196748,164.05,164.0,35.33422218]
[1730633414513,3.89196748,164.04,164.0,35.33422218]
[1730633414821,3.89196748,164.03,164.0,35.33422218]
[1730633415018,2.76,164.06,164.0,35.33422218]
[1730633415221,3.89039015,164.05,164.0,35.33422218]
[1730633415420,3.89039015,164.04,164.0,35.33422218]
[1730633415719,2.76,164.06,164.0,35.33422218]
[1730633415922,3.89039624,164.05,164.0,35.33422218]
[1730633416118,3.89039624,164.04,164.0,35.33422218]
[1730633416319,2.76,164.06,164.0,35.33422218]
[1730633416519,3.88944985,164.05,164.0,35.33422218]
[1730633416719,3.88944985,164.04,164.0,35.33422218]
[1730633416919,2.76,164.06,164.0,35.33422218]
[1730633417115,3.88948719,164.05,164.0,35.33422218]
[1730633417318,3.88948719,164.04,164.0,35.33422218]
[1730633417619,2.76,164.06,164.0,35.33422218]
[1730633418123,3.88893493,164.05,164.0,35.33422218]
[1730633418512,2.76,164.06,164.0,35.33422218]
[1730633419922,3.88900047,164.05,164.0,35.33422218]
[1730633420432,2.76,164.06,164.0,35.33422218]
[1730633421924,3.88853859,164.05,164.0,35.33422218]
[1730633422519,2.76,164.06,164.0,35.33422218]
[1730633427130,1.301,164.14,164.0,35.33422218]
[1730633427336,2.76,164.13,164.0,35.33422218]
[1730633430436,21.07,164.13,164.0,35.33422218]
[1730633430839,22.19761655,164.12,164.0,35.33422218]
[1730633431044,3.88761655,164.11,164.0,35.33422218]
[1730633431332,3.88761655,164.1,164.0,35.33422218]
[1730633431528,6.64761655,164.09,164.0,35.33422218]
[1730633431831,3.88761655,164.08,164.0,35.33422218]
[1730633432031,3.88761655,164.07,164.0,35.33422218]
[1730633432235,3.88761655,164.06,164.0,35.33422218]
[1730633432440,2.76,164.05,164.0,35.33422218]
[1730633432629,2.76,164.05,163.91,1.3733]
[1730633432630,3.88761655,164.04,163.91,1.3733]
[1730633432828,3.88761655,164.03,163.91,1.3733]
[1730633433026,6.49511655,164.02,163.91,1.3733]
[1730633433324,6.64761655,164.01,163.91,1.3733]
[1730633433525,3.88761655,164.0,163.91,1.3733]
[1730633433745,3.88761655,163.99,163.91,1.3733]
[1730633434041,3.88761655,163.98,163.91,1.3733]
[1730633434226,2.76,163.97,163.79,46.94169994]
[1730633434428,2.76,163.96,163.88,1.3013]
[1730633434627,2.76,163.95,163.88,1.3013]
[1730633434826,2.76,163.94,163.88,1.3013]
[1730633435934,1.3577,164.01,163.88,4.41106622]
[1730633436127,6.64053202,164.0,163.89,2.76]
[1730633436330,2.76,164.0,163.89,5.83528785]
[1730633436536,2.76,164.0,163.89,2.76]
[1730633437135,2.76,164.0,163.89,5.80874255]
[1730633438633,2.76,164.0,163.89,2.76]
[1730633438836,2.76,164.0,163.88,36.66304629]
[1730633439043,3.87627246,163.99,163.88,36.66304629]
[1730633439341,2.76,164.0,163.88,39.74729953]
[1730633441648,2.76,164.0,163.88,36.66304629]
[1730633442638,2.76,164.0,163.88,39.78196606]
[1730633443634,2.6075,164.02,163.88,39.78196606]
[1730633443837,2.76,164.01,163.88,39.78196606]
[1730633445036,2.76,164.01,163.88,36.66304629]
[1730633445645,2.76,164.01,163.88,39.77548998]
[1730633450644,2.76,164.01,163.88,4.41374369]
[1730633456960,2.76,164.01,163.88,1.3013]
[1730633457356,4.1348,164.01,163.88,1.3013]
[1730633458152,3.86205471,164.0,163.88,1.3013]
[1730633458360,4.1348,164.01,163.88,1.3013]
[1730633460154,3.86114726,164.0,163.88,1.3013]
[1730633460351,4.1348,164.01,163.88,1.3013]
[1730633460747,3.86092998,164.0,163.88,1.3013]
[1730633460956,3.86092998,163.99,163.88,1.3013]
[1730633461151,4.1348,164.01,163.88,1.3013]
[1730633461351,3.86096634,164.0,163.88,1.3013]
[1730633461551,4.1348,164.01,163.88,1.3013]
[1730633461767,22.17030355,164.0,163.88,1.3013]
[1730633462058,3.86030355,163.99,163.88,1.3013]
[1730633462257,7.21870543,164.01,163.88,1.3013]
[1730633462258,22.17030355,163.98,163.88,1.3013]
[1730633462457,6.62030355,163.97,163.88,1.3013]
[1730633462657,2.76,163.97,163.88,1.3013]
[1730633463260,2.76,163.97,163.86,1.3837]
[1730633463450,2.711,163.96,163.86,1.3837]
[1730633465063,2.711,163.96,163.85,1.3495]
[1730633465260,1.344,163.95,163.85,1.3495]
[1730633466769,1.344,163.95,163.83,1.3123]
[1730633467956,3.85661394,163.94,163.8,2.683]
[1730633468151,24.92720261,163.93,163.8,1.3136]
[1730633468360,18.31,163.91,163.77,3.0913257]
[1730633468568,2.5964,163.9,163.71,1.3136]
[1730633468870,21.07,163.89,163.71,2.614]
[1730633469074,3.85513901,163.88,163.72,1.12212124]
[1730633469368,22.4338,163.89,163.73,2.76]
[1730633469673,6.61173531,163.88,163.73,2.76]
[1730633470058,2.76,163.88,163.73,2.76]
[1730633472173,2.76,163.87,163.73,2.76]
[1730633472371,2.76,163.87,163.74,1.12198727]
[1730633473668,2.76,163.87,163.73,2.76]
[1730633473669,2.76,163.87,163.75,1.1219286]
[1730633473860,2.76,163.87,163.73,2.76]
[1730633473861,2.76,163.87,163.76,1.3655]
[1730633474061,2.76,163.87,163.77,5.4336]
[1730633475269,2.76,163.87,163.77,2.6736]
[1730633475866,2.76,163.87,163.76,1.3655]
[1730633476071,1.3889,163.86,163.76,1.3655]
[1730633476268,1.3889,163.86,163.71,5.3722]
[1730633476465,1.3889,163.86,163.71,3.9777]
[1730633477671,3.84205504,163.85,163.71,3.9777]
[1730633478072,1.3889,163.86,163.71,3.9777]
[1730633478284,18.31,163.84,163.71,2.6588]
[1730633478580,5.3431,163.83,163.71,2.6588]
[1730633483880,5.3431,163.83,163.65,1.3189]
[1730633484073,5.3431,163.83,163.66,3.84202543]
[1730633484277,5.3431,163.83,163.66,2.7195]
[1730633489386,23.6531,163.83,163.66,2.7195]
[1730633489781,1.0,163.82,163.66,2.7195]
[1730633491687,1.0,163.82,163.64,38.15849198]
[1730633491879,22.13596835,163.81,163.64,38.15849198]
[1730633492079,18.31,163.81,163.64,38.15849198]
[1730633492884,19.31,163.82,163.64,38.15849198]
[1730633493181,3.8244422,163.81,163.64,38.15849198]
[1730633493381,19.31,163.82,163.64,38.15849198]
[1730633494290,2.78,163.81,163.65,1.12266459]
[1730633496184,1.0,163.82,163.65,1.12266459]
[1730633496478,2.78,163.8,163.65,1.12266459]
[1730633496682,1.3128,163.79,163.65,1.12266459]
[1730633497695,1.3128,163.79,163.66,1.12259435]
[1730633497995,1.3128,163.79,163.64,38.15849198]
[1730633500683,1.3128,163.79,163.64,2.76]
[1730633502592,1.3128,163.79,163.61,6.6961]
[1730633502785,1.3128,163.79,163.62,1.12280792]
[1730633503189,1.0,163.78,163.61,3.9161]
[1730633503494,19.31,163.78,163.61,3.9161]
[1730633503690,1.2958,163.77,163.61,3.9161]
[1730633503890,2.78,163.76,163.61,3.9161]
[1730633504090,4.1596,163.76,163.61,3.9161]
[1730633504291,5.1596,163.76,163.61,3.9161]
[1730633506989,23.4696,163.76,163.46,6.097]